[Event "Uruguayan Championship 2022"]
[Site "Montevideo"]
[Date "2022.04.18"]
[Round "11.5"]
[White "Carbone, Diego"]
[Black "Lopez Azambuja, Nicolas"]
[Result "1/2-1/2"]
[ECO "E32"]
[WhiteElo "2272"]
[BlackElo "2318"]
[Annotator "TA"]
[PlyCount "56"]
[EventDate "2022.04.08"]
[EventType "tourn"]
[EventCountry "URU"]
[SourceTitle "playchess.com"]
[Source "ChessBase"]
[SourceQuality "1"]
[TimeControl "40/5400+30:1800+30"]

{[%evp 10,56,10,20,25,19,26,27,26,0,0,0,-13,-16,0,0,10,0,0,0,22,15,17,0,7,0,14,0,0,0,5,14,6,3,0,0,7,0,0,0,0,0,0,0,0,0,0,0,0]} 1. d4 {[%emt 0:00:03]} Nf6 {[%emt 0:00:14]} 2. c4 {[%emt 0:00:11]} e6 {[%emt 0:00:17]} 3. Nc3 {[%emt 0:00:16]} Bb4 {[%emt 0:00:17]} 4. Qc2 {[%emt 0:00:15]} d6 {[%emt 0:00:26]} 5. a3 {[%emt 0:03:56]} Bxc3+ {[%emt 0:00:22]} 6. Qxc3 {[%emt 0:00:10]} c5 {[%emt 0:01:07] E32: Nimzo-Indian: Classical (4 Qc2): 4...0-0.} 7. dxc5 {[%emt 0:09:15]} dxc5 {[%emt 0:00:30]} 8. Bg5 {[%emt 0:00:24]} Nc6 {[%emt 0:03:49] [#] White has an edge.} 9. Rd1 $146 {[%emt 0:03:03]} ({Predecessor:} 9. e3 e5 10. Ne2 h6 11. Bxf6 Qxf6 12. Ng3 O-O 13. Bd3 Qe7 14. Be4 Bd7 15. O-O {1-0 (38) Omelja,A (2499)-Taborov,B (2328) Kiev 2021}) 9... Qa5 {[%emt 0:03:17] The position is equal.} 10. Qxa5 {[%emt 0:08:38]} Nxa5 {[%emt 0:00:06]} 11. e3 {[%emt 0:01:42]} b6 {[%emt 0:02:00]} 12. Nf3 {[%emt 0:00:30]} Bb7 {[%emt 0:01:16]} 13. Bd3 {[%emt 0:06:13]} h6 {[%emt 0:02:33]} 14. Bf4 {[%emt 0:05:42]} Nc6 {[%emt 0:17:03]} 15. Ke2 {[%emt 0:04:26]} Ke7 {[%emt 0:02:44]} 16. h3 {[%emt 0:15:33]} Rhd8 {[%emt 0:00:42]} 17. Rhg1 {[%emt 0:02:05]} Rd7 {[%emt 0:02:08]} 18. Ne5 {[%emt 0:02:58]} (18. b3 {feels hotter.} g5 19. Bh2 Rad8 20. g4) 18... Nxe5 {[%emt 0:00:14]} 19. Bxe5 {[%emt 0:00:01]} Ne8 {[%emt 0:04:45]} 20. f3 {[%emt 0:02:43]} (20. Bg3 {seems wilder.} Rad8 21. f3 f6 22. b3) 20... f6 {[%emt 0:01:58]} 21. Bc3 {[%emt 0:00:04]} a5 {[%emt 0:00:53]} 22. b3 {[%emt 0:05:39]} Rad8 {[%emt 0:01:42][%cal Oa5a4]} 23. Bc2 {[%emt 0:02:16]} Rxd1 {[%emt 0:01:48]} 24. Rxd1 {[%emt 0:03:24]} Rxd1 {[%emt 0:00:06]} 25. Kxd1 {[%emt 0:00:28]} Nd6 {[%emt 0:00:21]} 26. a4 {[%emt 0:01:51]} e5 {[%emt 0:18:01]} 27. Ke2 {[%emt 0:02:04]} Bc8 {[%emt 0:00:58]} 28. g4 {[%emt 0:04:09]} Bb7 {[%emt 0:02:20] An even fight not without its subleties.  Weighted Error Value: White=0.05 (flawless) /Black=0.03 (flawless)} 1/2-1/2

[Event "Uruguayan Championship 2022"]
[Site "Montevideo"]
[Date "2022.04.18"]
[Round "11.6"]
[White "Vazquez, Facundo"]
[Black "Carvalho, Guillermo"]
[Result "1/2-1/2"]
[ECO "D38"]
[WhiteElo "2319"]
[BlackElo "2171"]
[Annotator "TA"]
[PlyCount "97"]
[EventDate "2022.04.08"]
[EventType "tourn"]
[EventCountry "URU"]
[SourceTitle "playchess.com"]
[Source "ChessBase"]
[SourceQuality "1"]
[TimeControl "40/5400+30:1800+30"]

{[%evp 11,97,14,10,10,19,8,22,16,16,8,19,0,12,12,13,8,9,5,31,0,6,-7,0,0,0,0,0,0,0,0,0,0,0,0,0,-29,-11,-23,-23,-46,5,0,46,51,50,-44,31,-22,14,7,72,70,69,40,110,96,91,77,81,81,88,79,87,2,32,1,41,10,65,16,28,35,43,16,16,-43,-81,-52,0,0,2,-86,0,-88,-85,-72,-68,-81]} 1. d4 {[%emt 0:00:04]} Nf6 {[%emt 0:00:16]} 2. c4 {[%emt 0:00:09]} e6 {[%emt 0:01:08]} 3. Nf3 {[%emt 0:00:09]} d5 4. Nc3 {[%emt 0:00:09]} Bb4 {[%emt 0:00:27]} 5. Qa4+ {[%emt 0:00:36]} Nc6 {[%emt 0:00:22]} 6. e3 {[%emt 0:00:18]} O-O {[%emt 0:01:29]} 7. Qc2 {[%emt 0:01:13] D38: Queen's Gambit Declined: Ragozin Defence (4 Nf3 Bb4).} b6 {[%emt 0:05:39]} 8. Bd2 {[%emt 0:02:49]} Ba6 {[%emt 0:06:39]} 9. Qa4 {[%emt 0:09:51] The position is equal.} Bb7 {[%emt 0:07:12]} 10. cxd5 {[%emt 0:05:18]} Nxd5 {[%emt 0:11:28] [#]} 11. Ba6 $146 {[%emt 0:03:34]} ({Predecessor:} 11. Bb5 Nce7 12. O-O Nxc3 13. bxc3 Bd6 14. Bd3 c5 15. e4 Ng6 16. Rad1 Qc7 17. Rfe1 {1-0 (54) Mamedyarov,S (2747)-Fressinet,L (2700) Huaian 2016}) 11... Na5 {[%emt 0:24:48]} 12. Bxb7 {[%emt 0:01:15]} Nxb7 {[%emt 0:01:07]} 13. O-O {[%emt 0:01:07] Black must now prevent Nxd5.} Bxc3 {[%emt 0:00:23]} 14. bxc3 {[%emt 0:00:35]} c5 {[%emt 0:00:23]} 15. c4 {[%emt 0:05:00]} Nf6 {[%emt 0:00:41]} 16. Bc3 {[%emt 0:02:20]} Ne4 {[%emt 0:02:54]} 17. Bb2 {[%emt 0:01:20]} Qc7 {[%emt 0:02:00]} 18. Qc2 {[%emt 0:07:14]} Nbd6 {[%emt 0:01:40]} 19. Rac1 {[%emt 0:02:34]} Rac8 {[%emt 0:04:53]} 20. Qd3 {[%emt 0:01:21]} f6 {[%emt 0:01:35]} 21. Rc2 {[%emt 0:02:10]} Rfd8 {[%emt 0:00:57]} 22. Rfc1 {[%emt 0:00:48]} Qf7 {[%emt 0:01:43]} 23. a4 {[%emt 0:05:54]} Qg6 {[%emt 0:02:48]} 24. Ne1 {[%emt 0:06:45]} Nb7 {[%emt 0:01:41]} 25. d5 {[%emt 0:10:18]} e5 {[%emt 0:00:40]} (25... Na5 $15) 26. f3 $11 {[%emt 0:02:25]} Ng5 {[%emt 0:00:37]} (26... Ned6 $11 {should be considered.}) 27. Qxg6 $14 {[%emt 0:00:29]} hxg6 {[%emt 0:00:09]} 28. Bc3 {[%emt 0:03:48]} (28. e4 $1 $14) 28... Nf7 {[%emt 0:00:41]} (28... e4 $15) 29. Nd3 {[%emt 0:02:20]} (29. e4 $1 $14) 29... Nfd6 {[%emt 0:01:32]} 30. Be1 {[%emt 0:00:34]} Rd7 {[%emt 0:02:27]} (30... e4 $11 31. Nf4 Re8) 31. e4 $16 {[%emt 0:00:13]} g5 {[%emt 0:01:20][%cal Og5g4]} 32. Rb1 {[%emt 0:00:35]} Rcc7 {[%emt 0:00:46]} ({Better is} 32... g4 $14) 33. a5 {[%emt 0:03:13]} Nc8 {[%emt 0:00:30]} 34. axb6 {[%emt 0:02:24]} axb6 {[%emt 0:00:15]} 35. Nb2 $1 {[%emt 0:02:00] &Bianco is more active.} Nbd6 {[%emt 0:03:38]} 36. Na4 {[%emt 0:00:46]} Rb7 {[%emt 0:00:47][%cal Og5g4] [#]} 37. Rbb2 {[%emt 0:02:55]} (37. h3 $1 $16) 37... Rdc7 {[%emt 0:00:32]} 38. Kf2 {[%emt 0:01:31]} Kf7 {[%emt 0:02:54][%cal Og5g4]} (38... g4 $5) 39. Ke2 {[%emt 0:00:54]} Kg6 {[%emt 0:00:50]} (39... g4 $11) 40. g4 {[%emt 0:01:24]} (40. Kd3 $14) 40... Kf7 {[%emt 0:03:12]} (40... Rb8 {with more complications.} 41. Kd3 b5 42. cxb5 c4+) 41. Bf2 {[%emt 0:32:22]} Ke8 {[%emt 0:31:29]} 42. Kd2 {[%emt 0:00:54]} g6 {[%emt 0:00:51]} 43. Kc3 {[%emt 0:02:00]} ({White should try} 43. Bg3 $11) 43... Ra7 $15 {[%emt 0:00:00]} 44. Ra2 {[%emt 0:00:00]} Ra5 {[%emt 0:00:00]} (44... f5 $1 $15) 45. Kb3 {[%emt 0:00:00]} Rca7 {[%emt 0:00:00]} 46. Nc3 {[%emt 0:00:00] [#]} (46. Be1 $11 {remains equal.} R5a6 47. Nc3) 46... Rxa2 {[%emt 0:00:00]} (46... Nb7 $1 $17) 47. Nxa2 {[%emt 0:00:00]} (47. Rxa2 $11 {was the only way to keep the balance.} Rxa2 48. Nxa2) 47... Nb7 $17 {[%emt 0:00:00]} 48. Be1 {[%emt 0:00:00]} Ncd6 {[%emt 0:00:00]} 49. Kb2 $1 {[%emt 0:00:00] Weighted Error Value: White=0.25 (precise) /Black=0.22 (precise)} 1/2-1/2